Workbook

Sheet Tabelle1
G1: Sprachauswahl (select language) | U1: 1200 | V1: deutsch | AG1: Prozessablauf
B2: =HLOOKUP($V$1,$AV$3:$AY$18,AU4) -> Prozessdatenblatt - Sinterformteil | U2: =VLOOKUP(U1,AR4:AS12,2) -> 16 | X2: =A1*1 -> 0 | AE2: 59 | AG2: deutsch | AV2: Kopfdaten | BE2: Gesamtseiten | BF2: =ROUNDUP((BG2*BH9+BH11+BH14)/BH20,0) -> 2 | BG2: =IF((BH9+BH11+BH14)/BH20>1,2,1) -> 2
X3: 5 | AE3: 40 | AG3: english | AK3: 1 | AL3: deutsch | AM3: english | AR3: Auflösung | AS3: Zeilenhöhe | AT3: Pixel | AU3: 1 | AV3: deutsch | AW3: english | AY3: OptionButton | AZ3: Bereich | BA3: Zeile
B4: =HLOOKUP($V$1,$AV$3:$AY$18,AU5) -> Bauteil-Bezeichnung | L4: =HLOOKUP($V$1,$AV$3:$AY$18,AU9) -> Datum | Y4: 0 | Z4: 0 | AB4: 0 | AC4: 0 | AE4: =MIN(AE2+AE3-SUM(AH9:AH16)*10+70-49,121-49) -> 72 | AF4: 1 | AG4: =HLOOKUP($V$1,$AV$21:$AY$36,AU23) -> bitte auswählen | AK4: 2 | AL4: Ja | AM4: Yes | AO4: 0 | AP4: 0 | AR4: 600 | AS4: 16 | AU4: 2 | AV4: Prozessdatenblatt - Sinterformteil | AW4: Process data sheet - sintered metal structural parts | AY4: 1 | AZ4: y | BA4: 27 | BJ4: Baustein | BK4: Zeilen | BL4: Bildpunkte
B5: =HLOOKUP($V$1,$AV$3:$AY$18,AU6) -> Zeichnungsnr. Brose | L5: =HLOOKUP($V$1,$AV$3:$AY$18,AU10) -> Lieferant | Y5: 0 | Z5: 0 | AB5: 0 | AC5: 0 | AF5: 2 | AG5: Pressen | AK5: 3 | AL5: Nein | AM5: No | AO5: 0 | AP5: 0 | AR5: 720 | AS5: 16 | AU5: 3 | AV5: Bauteil-Bezeichnung | AW5: part-name | AY5: 2 | AZ5: z | BA5: 27
B6: =HLOOKUP($V$1,$AV$3:$AY$18,AU7) -> Zeichnung-Index | L6: =HLOOKUP($V$1,$AV$3:$AY$18,AU11) -> Zeichnungsnr. Lieferant | Y6: 0 | Z6: 0 | AB6: 0 | AC6: 0 | AD6: SZ | AE6: =BF2 -> 2 | AF6: 3 | AG6: Sintern standard | AK6: 4 | AL6: -fach | AM6: -times | AO6: 0 | AP6: 0 | AR6: 768 | AS6: 16 | AU6: 4 | AV6: Zeichnungsnr. Brose | AW6: drawing-no. Brose | AY6: 3 | AZ6: y | BA6: 53
B7: =HLOOKUP($V$1,$AV$3:$AY$18,AU8) -> Werkstoff | L7: =HLOOKUP($V$1,$AV$3:$AY$18,AU12) -> ext. Prozess geplant | P7: =AB7*1+AC7*2 -> 0 | Q7: =HLOOKUP($V$1,$AL$3:$AN$5,$AK$4) -> Ja | R7: =HLOOKUP($V$1,$AL$3:$AN$5,$AK$5) -> Nein | Y7: 0 | Z7: 0 | AA7: =L7 -> ext. Prozess geplant | AB7: 0 | AC7: 0 | AD7: p1 | AE7: =BH22 -> 89 | AF7: 4 | AG7: Sintern - DH | AK7: 5 | AL7: Bitte Angaben zum Bearbeiter für mögliche Rückfragen ergänzen. Keine Unterschrift nötig, wenn dieses Dokument über die Online-FS Anwendung im Extranet an Brose gesendet wird | AM7: For further enquirys, please fill in information about the issuing person. No signature required if this document is sent to Brose via the Online-FS application in Extranet | AO7: 0 | AP7: 0 | AR7: 900 | AS7: 16 | AU7: 5 | AV7: Zeichnung-Index | AW7: issue | AY7: 4 | AZ7: z | BA7: 53 | BD7: Seite | BE7: 1 | BG7: Zeile | BH7: Bildpkt
Y8: 0 | Z8: 0 | AB8: 0 | AC8: 0 | AD8: p2 | AE8: =BH37 -> 109 | AF8: 5 | AG8: Sintern - HT | AK8: 6 | AL8: bitte auswählen | AM8: please select | AO8: 0 | AP8: 0 | AR8: 1024 | AS8: 16 | AU8: 6 | AV8: Werkstoff | AW8: material | AY8: 5 | AZ8: y | BA8: 36 | BF8: Zeilenhöhe | BG8: 1 | BH8: =U2 -> 16
Y9: 0 | Z9: 0 | AB9: 0 | AC9: 0 | AE9: 110 | AF9: 6 | AG9: =HLOOKUP($V$1,$AV$21:$AY$36,AU29) -> Kalibrieren | AH9: =W41*1 -> 0 | AI9: 40 | AJ9: 49 | AK9: 7 | AL9: keine | AM9: not used | AO9: 0 | AP9: 0 | AR9: 1050 | AS9: 16 | AT9: 21 | AU9: 7 | AV9: Datum | AW9: date | AY9: 6 | AZ9: z | BA9: 36 | BF9: Kopf | BG9: 9 | BH9: =BH8*BG9 -> 144
Y10: 0 | Z10: 0 | AB10: 0 | AC10: 0 | AF10: 7 | AG10: =HLOOKUP($V$1,$AV$21:$AY$36,AU31) -> weitere Wärmebehandlung | AH10: =W51*1 -> 0 | AI10: 50 | AJ10: 59 | AK10: 8 | AL10: mechanisch | AM10: mechanical | AO10: 0 | AP10: 0 | AR10: 1080 | AS10: 15 | AU10: 8 | AV10: Lieferant | AW10: supplier | AY10: 7 | AZ10: ab | BA10: 34 | BF10: Modulhöhe | BG10: 10
B11: =HLOOKUP($V$1,$AV$21:$AY$37,AU22) -> Prozessablauf | V11: 1 | Y11: 0 | Z11: 0 | AB11: 0 | AC11: 0 | AF11: 8 | AG11: =HLOOKUP($V$1,$AV$21:$AY$36,AU28) -> Entgraten | AH11: =W61*1 -> 0 | AI11: 60 | AJ11: 69 | AK11: 9 | AL11: hydraulisch | AM11: hydraulic | AO11: 0 | AP11: 0 | AR11: 1200 | AS11: 16 | AU11: 9 | AV11: Zeichnungsnr. Lieferant | AW11: drawing-no. supplier | AY11: 8 | AZ11: ac | BA11: 34 | BE11: =AE14 -> 3 | BF11: Modulegesamt | BG11: =BE11*BG10 -> 30 | BH11: =BG11*BH8 -> 480
Y12: 0 | Z12: 0 | AB12: 0 | AC12: 0 | AF12: 9 | AG12: =HLOOKUP($V$1,$AV$21:$AY$36,AU30) -> mech.Bearbeitung | AH12: =W71*1 -> 0 | AI12: 70 | AJ12: 79 | AK12: 10 | AL12: elektrisch | AM12: electric | AO12: 0 | AP12: 0 | AR12: 1500 | AS12: 15 | AU12: 10 | AV12: ext. Prozess geplant | AW12: planned ext. processes | AY12: 9 | AZ12: y | BA12: 34 | BF12: Unterkante | BH12: =BH11+BH9 -> 624
B13: =VLOOKUP(C13,$AF$4:$AG$20,2,FALSE) -> Pressen | C13: =U13 -> 2 | L13: =VLOOKUP(M13,$AF$4:$AG$20,2,FALSE) -> bitte auswählen | M13: =V13 -> 1 | U13: 2 | V13: 1 | Y13: 0 | Z13: 0 | AB13: 0 | AC13: 0 | AD13: Kopf | AE13: =AE16 -> 1 | AF13: 10 | AG13: =HLOOKUP($V$1,$AV$21:$AY$36,AU32) -> Oberflächenbehandlung | AH13: =W81*1 -> 0 | AI13: 80 | AJ13: 89 | AK13: 11 | AL13: Bandofen | AM13: mesh belt furnace | AO13: 0 | AP13: 0 | AU13: 11 | AV13: Prozessablauf | AW13: process flow | AY13: 10 | AZ13: z | BA13: 34 | BF13: breakeven | BG13: =ROUNDDOWN(BH13/BH8,0) -> 33 | BH13: =BH19-BH14 -> 534 | BJ13: =IF(BH12>BH13,BI11,BI12) -> 0
B14: Sintern standard | C14: =U14 -> 3 | L14: bitte auswählen | M14: =V14 -> 1 | U14: 3 | V14: 1 | Y14: 0 | Z14: 0 | AB14: 0 | AC14: 0 | AD14: Module | AE14: =SUM(V11,V21,V31,V41,V51,V61,V71,V81,V91,V101) -> 3 | AF14: 11 | AG14: =HLOOKUP($V$1,$AV$21:$AY$36,AU33) -> Imprägnieren | AH14: =W91*1 -> 0 | AI14: 90 | AJ14: 99 | AK14: 12 | AL14: Hubbalkenofen | AM14: walking beam furnace | AO14: 0 | AP14: 0 | AU14: 12 | AY14: 11 | AZ14: ab | BA14: 27 | BF14: Fuß | BG14: 16 | BH14: =BH8*BG14 -> 256 | BJ14: =(BH13-BH9) -> 390
B15: bitte auswählen | C15: 1 | L15: bitte auswählen | M15: 1 | U15: 1 | V15: 1 | Y15: 0 | Z15: 0 | AB15: 0 | AC15: 0 | AD15: Zeilen | AE15: =(AE14*10+16) -> 46 | AF15: 12 | AG15: =HLOOKUP($V$1,$AV$21:$AY$36,AU34) -> Verlesen | AK15: 13 | AL15: Kammer-Ofen | AM15: batch furnace | AO15: 0 | AP15: 0 | AU15: 13 | AY15: 12 | AZ15: ac | BA15: 27 | BF15: Platz pro Modul | BG15: =BG10 -> 10 | BH15: =BH8*BG15 -> 160
B16: bitte auswählen | C16: 1 | L16: bitte auswählen | M16: 1 | U16: 1 | V16: 1 | Y16: 0 | Z16: 0 | AB16: 0 | AC16: 0 | AE16: =ROUNDUP(AE15/55,0) -> 1 | AF16: 13 | AG16: =HLOOKUP($V$1,$AV$21:$AY$36,AU35) -> Verpacken | AH16: =W101*1 -> 0 | AI16: 100 | AJ16: 109 | AK16: 14 | AL16: Induktor | AM16: inductor | AO16: 0 | AP16: 0 | AU16: 14 | AY16: 13 | AZ16: ab | BA16: 54 | BF16: für Module bereiter Platz ohne Fuß | BG16: =BH16/BH8 -> 40.375 | BH16: =BH19-BH9 -> 646
B17: bitte auswählen | C17: 1 | L17: bitte auswählen | M17: 1 | U17: 1 | V17: 1 | Y17: 0 | Z17: 0 | AB17: 0 | AC17: 0 | AE17: =AE13*9+AE14*10+16 -> 55 | AF17: 14 | AG17: =HLOOKUP($V$1,$AV$21:$AY$36,AU36) -> n.N. | AK17: 15 | AL17: manuell | AM17: manual | AO17: 0 | AP17: 0 | AU17: 15 | AY17: 14 | AZ17: ac | BA17: 54 | BE17: =ROUNDDOWN(BH16/BH15,0) -> 4 | BF17: mögliche Module ohne Fuß | BG17: =BG15*BE17 -> 40 | BH17: =BE17*BH15+BH9 -> 784
Y18: 0 | Z18: 0 | AB18: 0 | AC18: 0 | AF18: 15 | AK18: 16 | AL18: automatisch | AM18: automatic | AO18: 0 | AP18: 0 | AU18: 16 | AY18: 15 | AZ18: ab | BA18: 35 | BE18: =ROUNDDOWN(BH13/BH15,0) -> 3 | BF18: mögliche Module mit Fuß | BG18: =BG15*BE18 -> 30 | BH18: =BE18*BH15+BH9 -> 624
Y19: 0 | Z19: 0 | AB19: 0 | AC19: 0 | AD19: =3+SUM($AH$9) -> 3 | AE19: 49 | AF19: 16 | AK19: 17 | AL19: Gleitschleifen | AM19: vibratory grinding | AO19: 0 | AP19: 0 | AY19: 16 | AZ19: ac | BA19: 35 | BE19: max | BF19: Zeilenumbruch | BG19: =ROUNDDOWN(BH19/BH8,0) -> 49 | BH19: 790
Y20: 0 | Z20: 0 | AB20: 0 | AC20: 0 | AD20: =3+SUM($AH$9:AH10) -> 3 | AE20: 59 | AF20: 17 | AK20: 18 | AL20: Grünlingsbürsten | AM20: green part brushing | AO20: 0 | AP20: 0 | AV20: Prozessablauf | AY20: 17 | AZ20: y | BA20: 64 | BF20: akt. | BG20: =IF(BH13>BH12,"kein","Zeilenumbruch") -> Zeilenumbruch | BH20: =BE17*BH15+BH9 -> 784
B21: =HLOOKUP($V$1,$AV$41:$AW$58,AU42) -> Pulverpressen | V21: 1 | Y21: 0 | Z21: 0 | AB21: 0 | AC21: 0 | AD21: =3+SUM($AH$9:AH11) -> 3 | AE21: 69 | AK21: 19 | AL21: Bürsten | AM21: brushing | AO21: 0 | AP21: 0 | AU21: 1 | AV21: deutsch | AW21: english | AY21: 18 | AZ21: z | BA21: 64 | BF21: 1. | BG21: Umbruch mögliche Zeile | BH21: =BH20/BH8 -> 49
Y22: 0 | Z22: 0 | AB22: 0 | AC22: 0 | AD22: =3+SUM($AH$9:AH12) -> 3 | AE22: 79 | AK22: 20 | AL22: Trommeln | AM22: tumbling | AO22: 0 | AP22: 0 | AU22: 2 | AV22: Prozessablauf | AW22: process flow | AY22: 19 | AZ22: ab | BA22: 53 | BF22: aktueller Umbruch in Zeile | BH22: =IF(BF2>1,VLOOKUP(BE17,BL28:BM35,2)-BE17*BG10+BH21,"") -> 89
B23: =HLOOKUP($V$1,$AV$41:$AW$58,AU43) -> proj. ROH-Teil Pressfläche | I23: cm² | L23: =HLOOKUP($V$1,$AV$41:$AW$58,AU50) -> WZ-Ebenen (u/o) | P23: 0 | U23: 0 | Y23: 0 | Z23: 0 | AB23: 0 | AC23: 0 | AD23: =3+SUM($AH$9:AH13) -> 3 | AE23: 89 | AK23: 21 | AL23: Strahlen | AM23: blasting | AO23: 0 | AP23: 0 | AU23: 3 | AV23: bitte auswählen | AW23: please select | AY23: 20 | AZ23: ac | BA23: 53 | BD23: Seite | BE23: 2
B24: Anzahl Nester | I24: =HLOOKUP($V$1,$AL$3:$AN$6,$AK$6) -> -fach | L24: Hubzahl | S24: min-1 | Y24: 0 | Z24: 0 | AB24: 0 | AC24: 0 | AD24: =3+SUM($AH$9:AH14) -> 3 | AE24: 99 | AK24: 22 | AL24: sonstige | AM24: others | AO24: 0 | AP24: 0 | AU24: 4 | AV24: Pressen | AW24: Pressing | AY24: 21 | AZ24: y | BA24: 55 | BF24: Zeilenhöhe | BG24: 1 | BH24: =BH8 -> 16
B25: Pressen-Typ | F25: 0 | L25: Pressdichte | S25: g/cm³ | U25: 0 | Y25: 0 | Z25: 0 | AB25: 0 | AC25: 0 | AD25: =3+SUM($AH$9:AH16) -> 3 | AE25: 109 | AK25: 23 | AL25: Trocken-Ofen | AM25: drying furnace | AO25: 0 | AP25: 0 | AU25: 5 | AV25: Sintern standard | AW25: Sintering - standard process | AY25: 22 | AZ25: z | BA25: 55 | BF25: Kopf | BG25: 9 | BH25: =BH9 -> 144
B26: Pressen-Größe | I26: t | L26: Pressgewicht | S26: g | Y26: 0 | Z26: 0 | AB26: 0 | AC26: 0 | AK26: 24 | AL26: Mais-Schrot | AM26: corn granules | AO26: 0 | AP26: 0 | AU26: 6 | AV26: Sintern - DH | AW26: Sintering - sinter hardening | AY26: 23 | AZ26: ab | BA26: 65 | BE26: =IF(BE11-BE17<=0,0,BE11-BE17) -> 0 | BF26: Restmodule | BG26: =BE26*10 -> 0 | BH26: =BG26*BH24 -> 0
B27: Warmpressen | F27: =Y27*1+Z27*2 -> 0 | G27: =HLOOKUP($V$1,$AL$3:$AN$5,$AK$4) -> Ja | H27: =HLOOKUP($V$1,$AL$3:$AN$5,$AK$5) -> Nein | L27: Grünlingsbearbeitung | P27: =AB27*1+AC27*2 -> 0 | Q27: =HLOOKUP($V$1,$AL$3:$AN$5,$AK$4) -> Ja | R27: =HLOOKUP($V$1,$AL$3:$AN$5,$AK$5) -> Nein | V27: =IF(OR(P27=1,W71*1=1),1,0) -> 0 | X27: =B27 -> Warmpressen | Y27: 0 | Z27: 0 | AA27: =L27 -> Grünlingsbearbeitung | AB27: 0 | AC27: 0 | AK27: 25 | AL27: Akzeptiert | AM27: accepted | AO27: 0 | AP27: 0 | AU27: 7 | AV27: Sintern - HT | AW27: Sintering - high temperature | AY27: 24 | AZ27: ac | BA27: 65 | BF27: Unterkante | BH27: =BH26+BH25 -> 144
B28: Press-Losgröße ca. | L28: Art d. Grünlingsbearbeitung | Y28: 0 | Z28: 0 | AB28: 0 | AC28: 0 | AK28: 26 | AL28: Bedingt akzeptiert | AM28: conditionally accepted | AO28: 0 | AP28: 0 | AU28: 8 | AV28: Entgraten | AW28: Deburring | AY28: 25 | AZ28: ab | BA28: 67 | BF28: breakeven | BG28: =ROUNDDOWN(BH28/BH8,0) -> 39 | BH28: =BH34-BH29 -> 624 | BJ28: 1 | BK28: 1 | BL28: =SUM(BK28)*BK28 -> 1 | BM28: =BJ28*$BG$10 -> 10
B29: Bearb.-aufmaße berücksichtigt | F29: =Y29*1+Z29*2 -> 0 | G29: =HLOOKUP($V$1,$AL$3:$AN$5,$AK$4) -> Ja | H29: =HLOOKUP($V$1,$AL$3:$AN$5,$AK$5) -> Nein | X29: Bearb.-aufmaße berücksichtigt | Y29: 0 | Z29: 0 | AB29: 0 | AC29: 0 | AF29: Pressen-Typ | AJ29: WZ-Ebenen | AK29: 27 | AL29: Abgelehnt | AM29: rejected | AO29: 0 | AP29: 0 | AU29: 9 | AV29: Kalibrieren | AW29: Sizing | AY29: 26 | AZ29: ac | BA29: 67 | BF29: Fuß | BG29: =BG14 -> 16 | BH29: =BH14 -> 256 | BJ29: 2 | BK29: 1 | BL29: =SUM($BK$28:BK29)*BK29 -> 2 | BM29: =BJ29*$BG$10 -> 20
Y30: 0 | Z30: 0 | AB30: 0 | AC30: 0 | AF30: =HLOOKUP($V$1,$AL$3:$AN$25,$AK$8) -> bitte auswählen | AJ30: =HLOOKUP($V$1,$AL$3:$AN$25,$AK$8) -> bitte auswählen | AK30: 28 | AL30: Bereich für Auswertung durch Brose | AM30: Area for evaluation by Brose | AO30: 0 | AP30: 0 | AU30: 10 | AV30: mech.Bearbeitung | AW30: Machining | AY30: 27 | AZ30: ab | BA30: 63 | BF30: Platz pro Modul | BG30: =BG15 -> 10 | BH30: =BH24*BG30 -> 160 | BJ30: 3 | BK30: 1 | BL30: =SUM($BK$28:BK30)*BK30 -> 3 | BM30: 30
B31: =HLOOKUP($V$1,$AV$61:$AW$78,AU62) -> Sintern | V31: 1 | Y31: 0 | Z31: 0 | AB31: 0 | AC31: 0 | AF31: =HLOOKUP($V$1,$AL$3:$AN$26,$AK10) -> mechanisch | AJ31: 1/1 | AK31: 29 | AL31: Name (Bearbeiter Brose) | AM31: Name (evaluator Brose) | AO31: 0 | AP31: 0 | AU31: 11 | AV31: weitere Wärmebehandlung | AW31: Add. heat treatment | AY31: 28 | AZ31: ac | BA31: 63 | BF31: für Module bereiter Platz | BH31: =BH34-BH25 -> 736 | BJ31: 4 | BK31: =AH9 -> 0 | BL31: =SUM($BK$28:BK31)*BK31 -> 0 | BM31: 40
Y32: 0 | Z32: 0 | AB32: 0 | AC32: 0 | AF32: =HLOOKUP($V$1,$AL$3:$AN$26,$AK11) -> hydraulisch | AJ32: 2/1 | AK32: 30 | AL32: Funktion | AM32: Function | AO32: 0 | AP32: 0 | AU32: 12 | AV32: Oberflächenbehandlung | AW32: Coating | AY32: 29 | AZ32: y | BA32: 67 | BE32: =ROUNDDOWN(BH31/BH30,0) -> 4 | BF32: mögliche Module ohne Fuß | BH32: =BE32*BH30+BH24 -> 656 | BJ32: 5 | BK32: =AH10 -> 0 | BL32: =SUM($BK$28:BK32)*BK32 -> 0 | BM32: 50
B33: =HLOOKUP($V$1,$AV$61:$AW$78,$AU63) -> Ofen-Typ | F33: 0 | G33: 3 | L33: =HLOOKUP($V$1,$AV$61:$AW$78,$AU70) -> Sinter-Temp. | S33: °C | Y33: 0 | Z33: 0 | AB33: 0 | AC33: 0 | AF33: =HLOOKUP($V$1,$AL$3:$AN$26,$AK12) -> elektrisch | AJ33: 2/2 | AK33: 31 | AL33: Name | AM33: Name | AO33: 0 | AP33: 0 | AU33: 13 | AV33: Imprägnieren | AW33: Impregnation | AY33: 30 | AZ33: z | BA33: 67 | BE33: =ROUNDDOWN(BH28/BH30,0) -> 3 | BF33: mögliche Module mit Fuß | BH33: =BE33*BH30+BH24 -> 496 | BJ33: 6 | BK33: 0 | BL33: =SUM($BK$28:BK33)*BK33 -> 0 | BM33: 60
B34: =HLOOKUP($V$1,$AV$61:$AW$78,$AU64) -> Warenträger | F34: =Y34*1+Z34*2 -> 0 | G34: =HLOOKUP($V$1,$AL$3:$AN$5,$AK$4) -> Ja | H34: =HLOOKUP($V$1,$AL$3:$AN$5,$AK$5) -> Nein | L34: =HLOOKUP($V$1,$AV$61:$AW$78,$AU71) -> Schroffkühlung/Direkthärten | P34: =AB34*1+AC34*2 -> 0 | Q34: =HLOOKUP($V$1,$AL$3:$AN$5,$AK$4) -> Ja | R34: =HLOOKUP($V$1,$AL$3:$AN$5,$AK$5) -> Nein | X34: =B34 -> Warenträger | Y34: 0 | Z34: 0 | AA34: =L34 -> Schroffkühlung/Direkthärten | AB34: 0 | AC34: 0 | AJ34: 3/1 | AK34: 32 | AL34: Datum | AM34: Date | AO34: 0 | AP34: 0 | AU34: 14 | AV34: Verlesen | AW34: 100%-inspection | AY34: 31 | AZ34: y | BA34: 65 | BE34: max | BF34: Zeilenumbruch | BG34: =ROUNDDOWN(BH34/BH8,0) -> 55 | BH34: 880 | BJ34: 7 | BK34: 0 | BL34: =SUM($BK$28:BK34)*BK34 -> 0 | BM34: 70
B35: =HLOOKUP($V$1,$AV$61:$AW$78,$AU65) -> Anzahl Teilelagen | I35: =HLOOKUP($V$1,$AL$3:$AN$6,$AK$6) -> -fach | L35: =HLOOKUP($V$1,$AV$61:$AW$78,$AU72) -> Anlasszone Sinterofen | P35: =AB35*1+AC35*2 -> 0 | Q35: =HLOOKUP($V$1,$AL$3:$AN$5,$AK$4) -> Ja | R35: =HLOOKUP($V$1,$AL$3:$AN$5,$AK$5) -> Nein | Y35: 0 | Z35: 0 | AA35: =L35 -> Anlasszone Sinterofen | AB35: 0 | AC35: 0 | AJ35: 3/2 | AK35: 33 | AL35: Unterschrift | AM35: Signature | AO35: 0 | AP35: 0 | AU35: 15 | AV35: Verpacken | AW35: Packing | AY35: 32 | AZ35: z | BA35: 65 | BG35: =IF(BH28>BH27,"kein","Zeilenumbruch") -> kein | BH35: =BE32*BH30+BH25 -> 784 | BJ35: 8 | BK35: 0 | BL35: =SUM($BK$28:BK35)*BK35 -> 0 | BM35: 80
B36: =HLOOKUP($V$1,$AV$61:$AW$78,$AU66) -> Abdecklage | F36: =Y36*1+Z36*2 -> 0 | G36: =HLOOKUP($V$1,$AL$3:$AN$5,$AK$4) -> Ja | H36: =HLOOKUP($V$1,$AL$3:$AN$5,$AK$5) -> Nein | L36: =HLOOKUP($V$1,$AV$61:$AW$78,$AU73) -> Microhärte | X36: =B36 -> Abdecklage | Y36: 0 | Z36: 0 | AB36: 0 | AC36: 0 | AJ36: 3/3 | AK36: 34 | AL36: Bewertung | AM36: Evaluation | AO36: 0 | AP36: 0 | AU36: 16 | AV36: n.N. | AW36: n.n. | AY36: 33 | AZ36: y | BA36: 46 | BF36: 1. | BG36: Umbruch Zeile | BH36: =BE23*BH21 -> 98 | BJ36: 9 | BK36: 0 | BL36: =SUM($BK$28:BK36)*BK36 -> 0 | BM36: 90
B37: =HLOOKUP($V$1,$AV$61:$AW$78,$AU67) -> Sinter-Losgröße ca. | L37: =HLOOKUP($V$1,$AV$61:$AW$78,$AU74) -> Macrohärte | Y37: 0 | Z37: 0 | AB37: 0 | AC37: 0 | AJ37: 4/3 | AK37: 35 | AL37: Kommentar | AM37: Comment | AO37: 0 | AP37: 0 | AU37: 17 | AY37: 34 | AZ37: z | BA37: 46 | BF37: aktueller Umbruch bei | BH37: =VLOOKUP((BE17+BE32),BL28:BM37,2)+BG25 -> 109 | BJ37: 10 | BK37: =AH16 -> 0 | BL37: =SUM($BK$28:BK37)*BK37 -> 0 | BM37: 100
Y38: 0 | Z38: 0 | AB38: 0 | AC38: 0 | AK38: 36 | AL38: KLT | AM38: small load carriers | AO38: 0 | AP38: 0 | AU38: 18 | AY38: 35 | AZ38: y | BA38: 74 | BH38: =IF(BF2>2,(BH22+VLOOKUP(BE11,BL28:BM37,2)-VLOOKUP(BE17,BL28:BM37,2)+BG25),"") -> 
Y39: 0 | Z39: 0 | AB39: 0 | AC39: 0 | AF39: Härte | AH39: Ofen-Typ | AK39: 37 | AL39: Karton | AM39: cartonbox | AO39: 0 | AP39: 0 | AU39: 19 | AY39: 36 | AZ39: z | BA39: 74
Y40: 0 | Z40: 0 | AB40: 0 | AC40: 0 | AF40: HV0,1 | AH40: =HLOOKUP($V$1,$AL$3:$AN$25,$AK$8) -> bitte auswählen | AK40: 38 | AL40: Sonderbehälter | AM40: special box | AO40: 0 | AP40: 0 | AV40: Pulverpressen | AY40: 37 | AZ40: y | BA40: 75
B41: =HLOOKUP($V$1,$AV$81:$AW$99,$AU82) -> Kalibrieren | V41: =W41*1 -> 0 | W41: =OR(EXACT(B41,$B$13:$L$17)) -> FALSE | Y41: 0 | Z41: 0 | AB41: 0 | AC41: 0 | AF41: HV0,2 | AH41: =HLOOKUP($V$1,$AL$3:$AN$25,$AK13) -> Bandofen | AK41: 39 | AO41: 0 | AP41: 0 | AU41: 1 | AV41: deutsch | AW41: english | AY41: 38 | AZ41: z | BA41: 75
Y42: 0 | Z42: 0 | AB42: 0 | AC42: 0 | AF42: HV5 | AH42: =HLOOKUP($V$1,$AL$3:$AN$25,$AK14) -> Hubbalkenofen | AK42: 40 | AO42: 0 | AP42: 0 | AU42: 2 | AV42: Pulverpressen | AW42: powder compacting | AY42: 39 | AZ42: y | BA42: 56
B43: =HLOOKUP($V$1,$AV$81:$AW$98,$AU83) -> Pressen-Größe | I43: t | L43: =HLOOKUP($V$1,$AV$81:$AW$98,$AU90) -> WZ-Ebenen (u/o) | P43: 0 | Y43: 0 | Z43: 0 | AB43: 0 | AC43: 0 | AF43: HV10 | AH43: =HLOOKUP($V$1,$AL$3:$AN$25,$AK15) -> Kammer-Ofen | AK43: 41 | AO43: 0 | AP43: 0 | AU43: 3 | AV43: proj. ROH-Teil Pressfläche | AW43: projected raw-part pressing area | AY43: 40 | AZ43: z | BA43: 56
B44: =HLOOKUP($V$1,$AV$81:$AW$98,$AU84) -> Zuführung | F44: 0 | L44: =HLOOKUP($V$1,$AV$81:$AW$98,$AU91) -> Hubzahl | S44: min-1 | Y44: 0 | Z44: 0 | AB44: 0 | AC44: 0 | AF44: HRc | AO44: 0 | AP44: 0 | AU44: 4 | AV44: Anzahl Nester | AW44: quantity of cavities | AY44: 41 | AZ44: ab | BA44: 75
B45: =HLOOKUP($V$1,$AV$81:$AW$98,$AU85) -> Verwendetes Kalibrier-Öl | L45: =HLOOKUP($V$1,$AV$81:$AW$98,$AU92) -> zu kalibrierende Merkmale | Y45: 0 | Z45: 0 | AB45: 0 | AC45: 0 | AF45: HB | AO45: 0 | AP45: 0 | AU45: 5 | AV45: Pressen-Typ | AW45: powder-press type | AY45: 42 | AZ45: ac | BA45: 75
B46: =HLOOKUP($V$1,$AV$81:$AW$98,$AU86) -> Wasch-Arbeitsgang | F46: =Y46*1+Z46*2 -> 0 | G46: =HLOOKUP($V$1,$AL$3:$AN$5,$AK$4) -> Ja | H46: =HLOOKUP($V$1,$AL$3:$AN$5,$AK$5) -> Nein | X46: =B46 -> Wasch-Arbeitsgang | Y46: 0 | Z46: 0 | AB46: 0 | AC46: 0 | AO46: 0 | AP46: 0 | AU46: 6 | AV46: Pressen-Größe | AW46: powder-press capacity | AY46: 43 | AZ46: y | BA46: 93
Y47: 0 | Z47: 0 | AB47: 0 | AC47: 0 | AF47: Zuführung | AO47: 0 | AP47: 0 | AU47: 7 | AV47: Warmpressen | AW47: warm compacting | AY47: 44 | AZ47: z | BA47: 93
Y48: 0 | Z48: 0 | AB48: 0 | AC48: 0 | AF48: =HLOOKUP($V$1,$AL$3:$AN$11,$AK$8) -> bitte auswählen | AH48: Warenträger | AO48: 0 | AP48: 0 | AU48: 8 | AV48: Press-Losgröße ca. | AW48: lot size | AY48: 45 | AZ48: y | BA48: 94
Y49: 0 | Z49: 0 | AB49: 0 | AC49: 0 | AF49: =HLOOKUP($V$1,$AL$3:$AN$20,$AK17) -> manuell | AH49: ohne - direkt a. Ofenband | AO49: 0 | AP49: 0 | AU49: 9 | AV49: Bearb.-aufmaße berücksichtigt | AW49: machining allowance considered | AY49: 46 | AZ49: z | BA49: 94
Y50: 0 | Z50: 0 | AB50: 0 | AC50: 0 | AF50: =HLOOKUP($V$1,$AL$3:$AN$20,$AK18) -> automatisch | AH50: Sinterplatte | AO50: 0 | AP50: 0 | AU50: 10 | AV50: WZ-Ebenen (u/o) | AW50: tool plates (bottom/top) | AY50: 47 | AZ50: ab | BA50: 7
B51: =HLOOKUP($V$1,$AV$101:$AW$118,$AU102) -> weitere Wärmebehandlung | V51: =W51*1 -> 0 | W51: =OR(EXACT(B51,$B$13:$L$17)) -> FALSE | Y51: 0 | Z51: 0 | AB51: 0 | AC51: 0 | AH51: Sinterkiste | AO51: 0 | AP51: 0 | AU51: 11 | AV51: Hubzahl | AW51: revolutions per minute | AY51: 48 | AZ51: ac | BA51: 7
Y52: 0 | Z52: 0 | AB52: 0 | AC52: 0 | AH52: Korb | AO52: 0 | AP52: 0 | AU52: 12 | AV52: Pressdichte | AW52: pressing density | AY52: 49 | AZ52: y | BA52: 86
B53: =HLOOKUP($V$1,$AV$101:$AW$118,$AU103) -> Einsatzhärten | F53: =Y53*1+Z53*2 -> 0 | G53: =HLOOKUP($V$1,$AL$3:$AN$5,$AK$4) -> Ja | H53: =HLOOKUP($V$1,$AL$3:$AN$5,$AK$5) -> Nein | L53: =HLOOKUP($V$1,$AV$101:$AW$118,$AU110) -> Induktivhärten | P53: =AB53*1+AC53*2 -> 0 | Q53: =HLOOKUP($V$1,$AL$3:$AN$5,$AK$4) -> Ja | R53: =HLOOKUP($V$1,$AL$3:$AN$5,$AK$5) -> Nein | X53: =B53 -> Einsatzhärten | Y53: 0 | Z53: 0 | AA53: =L53 -> Induktivhärten | AB53: 0 | AC53: 0 | AO53: 0 | AP53: 0 | AU53: 13 | AV53: Pressgewicht | AW53: pressing weight | AY53: 50 | AZ53: z | BA53: 86
B54: =HLOOKUP($V$1,$AV$101:$AW$118,$AU104) -> Ofen-Typ | L54: =HLOOKUP($V$1,$AV$101:$AW$118,$AU111) -> Anlassen/Glühen | P54: =AB54*1+AC54*2 -> 0 | Q54: =HLOOKUP($V$1,$AL$3:$AN$5,$AK$4) -> Ja | R54: =HLOOKUP($V$1,$AL$3:$AN$5,$AK$5) -> Nein | Y54: 0 | Z54: 0 | AA54: =L54 -> Anlassen/Glühen | AB54: 0 | AC54: 0 | AO54: 0 | AP54: 0 | AU54: 14 | AV54: Grünlingsbearbeitung | AW54: greenpart machining | AY54: 51 | AZ54: ab | BA54: 54
B55: =HLOOKUP($V$1,$AV$101:$AW$118,$AU105) -> Schüttware | F55: =Y55*1+Z55*2 -> 0 | G55: =HLOOKUP($V$1,$AL$3:$AN$5,$AK$4) -> Ja | H55: =HLOOKUP($V$1,$AL$3:$AN$5,$AK$5) -> Nein | L55: =HLOOKUP($V$1,$AV$101:$AW$118,$AU112) -> Ofen-Typ | X55: =B55 -> Schüttware | Y55: 0 | Z55: 0 | AB55: 0 | AC55: 0 | AO55: 0 | AP55: 0 | AU55: 15 | AV55: Art d. Grünlingsbearbeitung | AW55: type of machining | AY55: 52 | AZ55: ac | BA55: 54
B56: =HLOOKUP($V$1,$AV$101:$AW$118,$AU106) -> 2. Sintern mit DH | F56: =Y56*1+Z56*2 -> 0 | G56: =HLOOKUP($V$1,$AL$3:$AN$5,$AK$4) -> Ja | H56: =HLOOKUP($V$1,$AL$3:$AN$5,$AK$5) -> Nein | X56: =B56 -> 2. Sintern mit DH | Y56: 0 | Z56: 0 | AB56: 0 | AC56: 0 | AF56: Härteofen | AO56: 0 | AP56: 0 | AU56: 16 | AY56: 53 | AZ56: y | BA56: 83
Y57: 0 | Z57: 0 | AB57: 0 | AC57: 0 | AF57: =HLOOKUP($V$1,$AL$3:$AN$11,$AK$8) -> bitte auswählen | AO57: 0 | AP57: 0 | AU57: 17 | AY57: 54 | AZ57: z | BA57: 83
Y58: 0 | Z58: 0 | AB58: 0 | AC58: 0 | AF58: =HLOOKUP($V$1,$AL$3:$AN$14,$AK13) -> Bandofen | AN58: Pulverpressen | AO58: 0 | AP58: 0 | AU58: 18 | AY58: 55 | AZ58: y | BA58: 85
Y59: 0 | Z59: 0 | AB59: 0 | AC59: 0 | AF59: =HLOOKUP($V$1,$AL$3:$AN$25,$AK15) -> Kammer-Ofen | AN59: proj. ROH-Teil Pressfläche | AO59: 0 | AP59: 0 | AU59: 19 | AY59: 56 | AZ59: z | BA59: 85
Y60: 0 | Z60: 0 | AB60: 0 | AC60: 0 | AF60: =HLOOKUP($V$1,$AL$3:$AN$25,$AK16) -> Induktor | AN60: Anzahl Nester | AO60: 0 | AP60: 0 | AV60: Sintern | AY60: 57 | AZ60: y | BA60: 29
B61: =HLOOKUP($V$1,$AV$121:$AW$138,$AU122) -> Entgraten | V61: =W61*1 -> 0 | W61: =OR(EXACT(B61,$B$13:$L$17)) -> FALSE | Y61: 0 | Z61: 0 | AB61: 0 | AC61: 0 | AN61: Pressen-Typ | AO61: 0 | AP61: 0 | AU61: 1 | AV61: deutsch | AW61: english | AY61: 58 | AZ61: z | BA61: 29
Y62: 0 | Z62: 0 | AB62: 0 | AC62: 0 | AN62: Pressen-Größe | AO62: 0 | AP62: 0 | AU62: 2 | AV62: Sintern | AW62: Sintering | AY62: 59 | AZ62: y | BA62: 46
B63: =HLOOKUP($V$1,$AV$121:$AW$138,$AU123) -> Verfahren | F63: 0 | L63: =HLOOKUP($V$1,$AV$121:$AW$138,$AU130) -> Kühl-Schmiermittel | P63: =AB63*1+AC63*2 -> 0 | Q63: =HLOOKUP($V$1,$AL$3:$AN$5,$AK$4) -> Ja | R63: =HLOOKUP($V$1,$AL$3:$AN$5,$AK$5) -> Nein | W63: =IF(V61=1,AO63*1,0) -> 0 | Y63: 0 | Z63: 0 | AA63: Kühl-Schmiermittel | AB63: 0 | AC63: 0 | AN63: Warmpressen | AO63: 0 | AP63: 0 | AU63: 3 | AV63: Ofen-Typ | AW63: furnace type | AY63: 60 | AZ63: z | BA63: 46
B64: Gleitschleifkörper | F64: =IF(V61=1,(Y64*1+Z64*2)*AO63,0) -> 0 | G64: =HLOOKUP($V$1,$AL$3:$AN$5,$AK$4) -> Ja | H64: =HLOOKUP($V$1,$AL$3:$AN$5,$AK$5) -> Nein | L64: =HLOOKUP($V$1,$AV$121:$AW$138,$AU131) -> KSM-Bezeichnung | X64: Gleitschleifkörper | Y64: 0 | Z64: 0 | AB64: 0 | AC64: 0 | AN64: Press-Losgröße ca. | AO64: 0 | AP64: 0 | AU64: 4 | AV64: Warenträger | AW64: carrier | AY64: 61 | AZ64: ab | BA64: 104
B65: Reinigungs-Arbeitsgang | F65: =Y65*1+Z65*2 -> 0 | G65: =HLOOKUP($V$1,$AL$3:$AN$5,$AK$4) -> Ja | H65: =HLOOKUP($V$1,$AL$3:$AN$5,$AK$5) -> Nein | L65: =HLOOKUP($V$1,$AV$121:$AW$138,$AU132) -> Wasch-Medium | P65: =AB65*1+AC65*2 -> 0 | Q65: =HLOOKUP($V$1,$AL$3:$AN$5,$AK$4) -> Ja | R65: =HLOOKUP($V$1,$AL$3:$AN$5,$AK$5) -> Nein | X65: Reinigungs-Arbeitsgang | Y65: 0 | Z65: 0 | AA65: Wasch-Medium | AB65: 0 | AC65: 0 | AN65: WZ-Ebenen (u/o) | AO65: 0 | AP65: 0 | AU65: 5 | AV65: Anzahl Teilelagen | AW65: no. of layers | AY65: 62 | AZ65: ac | BA65: 104
B66: Trocknung | F66: 0 | L66: =HLOOKUP($V$1,$AV$121:$AW$138,$AU133) -> Wasch-Medium Bezeichnung | Y66: 0 | Z66: 0 | AB66: 0 | AC66: 0 | AN66: Hubzahl | AO66: 0 | AP66: 0 | AU66: 6 | AV66: Abdecklage | AW66: top cover layer | AY66: 63 | AZ66: y | BA66: 95
B67: zus. Korrosionsschutz | F67: =Y67*1+Z67*2 -> 0 | G67: =HLOOKUP($V$1,$AL$3:$AN$5,$AK$4) -> Ja | H67: =HLOOKUP($V$1,$AL$3:$AN$5,$AK$5) -> Nein | L67: =HLOOKUP($V$1,$AV$121:$AW$138,$AU134) -> Verlesen auf Schleifkörper | P67: =AB67*1+AC67*2 -> 0 | Q67: =HLOOKUP($V$1,$AL$3:$AN$5,$AK$4) -> Ja | R67: =HLOOKUP($V$1,$AL$3:$AN$5,$AK$5) -> Nein | X67: zus. Korrosionsschutz | Y67: 0 | Z67: 0 | AA67: Verlesen auf Schleifkörper | AB67: 0 | AC67: 0 | AF67: Entgraten | AH67: Trocknung | AN67: Pressdichte | AO67: 0 | AP67: 0 | AU67: 7 | AV67: Sinter-Losgröße ca. | AW67: sinter lot size | AY67: 64 | AZ67: z | BA67: 95
B68: Korrosionsschutzmittel | Y68: 0 | Z68: 0 | AB68: 0 | AC68: 0 | AF68: =HLOOKUP($V$1,$AL$3:$AN$25,$AK$8) -> bitte auswählen | AH68: =HLOOKUP($V$1,$AL$3:$AN$11,$AK8) -> bitte auswählen | AN68: Pressgewicht | AO68: 0 | AP68: 0 | AU68: 8 | AY68: 65 | AZ68: y | BA68: 105
Y69: 0 | Z69: 0 | AB69: 0 | AC69: 0 | AF69: =HLOOKUP($V$1,$AL$3:$AM$26,$AK19) -> Gleitschleifen | AH69: Trocken-Ofen | AN69: Grünlingsbearbeitung | AO69: 0 | AP69: 0 | AU69: 9 | AY69: 66 | AZ69: z | BA69: 105
Y70: 0 | Z70: 0 | AB70: 0 | AC70: 0 | AF70: =HLOOKUP($V$1,$AL$3:$AM$26,$AK20) -> Grünlingsbürsten | AH70: Mais-Schrot | AN70: Art d. Grünlingsbearbeitung | AO70: 0 | AP70: 0 | AU70: 10 | AV70: Sinter-Temp. | AW70: sintering temperature | AY70: 67 | AZ70: ab | BA70: 105
B71: =HLOOKUP($V$1,$AV$141:$AW$158,$AU142) -> mech.Bearbeitung | V71: =W71*1 -> 0 | W71: =OR(EXACT(B71,$B$13:$N$17)) -> FALSE | Y71: 0 | Z71: 0 | AB71: 0 | AC71: 0 | AF71: =HLOOKUP($V$1,$AL$3:$AM$26,$AK21) -> Bürsten | AH71: sonstige | AO71: 0 | AP71: 0 | AU71: 11 | AV71: Schroffkühlung/Direkthärten | AW71: rapid cooling / direct hardening | AY71: 68 | AZ71: ac | BA71: 105
M72: FALSE | Y72: 0 | Z72: 0 | AB72: 0 | AC72: 0 | AF72: =HLOOKUP($V$1,$AL$3:$AM$26,$AK22) -> Trommeln | AH72: keine | AO72: 0 | AP72: 0 | AU72: 12 | AV72: Anlasszone Sinterofen | AW72: annealing zone | AY72: 69 | AZ72: y | BA72: 104
B73: =HLOOKUP($V$1,$AV$141:$AW$158,$AU143) -> Drehen | D73: =HLOOKUP($V$1,$AV$141:$AW$158,$AU144) -> Fräsen | F73: =HLOOKUP($V$1,$AV$141:$AW$158,$AU145) -> Bohren | H73: =HLOOKUP($V$1,$AV$141:$AW$158,$AU146) -> Honen | J73: =HLOOKUP($V$1,$AV$141:$AW$158,$AU147) -> Schleifen | N73: =HLOOKUP($V$1,$AV$141:$AW$158,$AU148) -> sonstige | Y73: 0 | Z73: 0 | AB73: 0 | AC73: 0 | AF73: =HLOOKUP($V$1,$AL$3:$AM$26,$AK24) -> sonstige | AO73: 0 | AP73: 0 | AU73: 13 | AV73: Microhärte | AW73: micro hardness | AY73: 70 | AZ73: z | BA73: 104
B74: =HLOOKUP($V$1,$AV$141:$AW$158,$AU150) -> Kühl-Schmiermittel | F74: =Y74*1+Z74*2 -> 0 | G74: =HLOOKUP($V$1,$AL$3:$AN$5,$AK$4) -> Ja | H74: =HLOOKUP($V$1,$AL$3:$AN$5,$AK$5) -> Nein | L74: =HLOOKUP($V$1,$AV$121:$AW$138,$AU150) -> Kühl-Schmiermittel | X74: Kühl-Schmiermittel | Y74: 0 | Z74: 0 | AB74: 0 | AC74: 0 | AF74: =HLOOKUP($V$1,$AL$3:$AM$26,$AK25) -> Trocken-Ofen | AO74: 0 | AP74: 0 | AU74: 14 | AV74: Macrohärte | AW74: macro hardness | AY74: 71 | AZ74: y | BA74: 106
B75: =HLOOKUP($V$1,$AV$141:$AW$158,$AU152) -> eigene ROH-Teil Zg. | F75: =Y75*1+Z75*2 -> 0 | G75: =HLOOKUP($V$1,$AL$3:$AN$5,$AK$4) -> Ja | H75: =HLOOKUP($V$1,$AL$3:$AN$5,$AK$5) -> Nein | L75: =HLOOKUP($V$1,$AV$141:$AW$158,$AU153) -> eigene BEA-Zg. | P75: =AB75*1+AC75*2 -> 0 | Q75: =HLOOKUP($V$1,$AL$3:$AN$5,$AK$4) -> Ja | R75: =HLOOKUP($V$1,$AL$3:$AN$5,$AK$5) -> Nein | X75: eigene ROH-Teil Zg. | Y75: 0 | Z75: 0 | AA75: eigene Bearbeitungs-Zg. | AB75: 0 | AC75: 0 | AO75: 0 | AP75: 0 | AU75: 15 | AY75: 72 | AZ75: z | BA75: 106
B76: =HLOOKUP($V$1,$AV$141:$AW$158,$AU154) -> Korrosionsschutzmittel | F76: =Y76*1+Z76*2 -> 0 | G76: =HLOOKUP($V$1,$AL$3:$AN$5,$AK$4) -> Ja | H76: =HLOOKUP($V$1,$AL$3:$AN$5,$AK$5) -> Nein | X76: Rostschutzmittel | Y76: 0 | Z76: 0 | AB76: 0 | AC76: 0 | AI76: 0 | AO76: 0 | AP76: 0 | AU76: 16 | AY76: 73 | AZ76: y | BA76: 94
Y77: 0 | Z77: 0 | AB77: 0 | AC77: 0 | AH77: checkbox1 | AI77: 0 | AO77: 0 | AP77: 0 | AU77: 17 | AY77: 74 | AZ77: z | BA77: 94
Y78: 0 | Z78: 0 | AB78: 0 | AC78: 0 | AH78: checkbox2 | AI78: 0 | AO78: 0 | AP78: 0 | AU78: 18 | AY78: 75 | AZ78: y | BA78: 76
Y79: 0 | Z79: 0 | AB79: 0 | AC79: 0 | AH79: checkbox3 | AI79: 0 | AO79: 0 | AP79: 0 | AU79: 19 | AY79: 76 | AZ79: z | BA79: 76
Y80: 0 | Z80: 0 | AB80: 0 | AC80: 0 | AH80: checkbox4 | AI80: 0 | AO80: 0 | AP80: 0 | AV80: Kalibrieren | AY80: 77 | AZ80: y | BA80: 95
B81: =HLOOKUP($V$1,$AV$161:$AW$179,$AU162) -> Oberflächenbehandlung | V81: =W81*1 -> 0 | W81: =OR(EXACT(B81,$B$13:$L$17)) -> FALSE | Y81: 0 | Z81: 0 | AB81: 0 | AC81: 0 | AH81: checkbox5 | AI81: 0 | AO81: 0 | AP81: 0 | AU81: 1 | AV81: deutsch | AW81: english | AY81: 78 | AZ81: z | BA81: 95
Y82: 0 | Z82: 0 | AB82: 0 | AC82: 0 | AH82: checkbox6 | AI82: 0 | AO82: 0 | AP82: 0 | AU82: 2 | AV82: Kalibrieren | AW82: Sizing
B83: =HLOOKUP($V$1,$AV$161:$AW$179,$AU163) -> Wasserdampfbehandlung | F83: =Y83*1+Z83*2 -> 0 | G83: =HLOOKUP($V$1,$AL$3:$AN$37,$AK$4) -> Ja | H83: =HLOOKUP($V$1,$AL$3:$AN$5,$AK$5) -> Nein | L83: =HLOOKUP($V$1,$AV$161:$AW$179,$AU170) -> Prozessdauer | S83: h | X83: Wasserdampfbehandlung | Y83: 0 | Z83: 0 | AB83: 0 | AC83: 0 | AO83: 0 | AP83: 0 | AU83: 3 | AV83: Pressen-Größe | AW83: sizing-press capacity
B84: =HLOOKUP($V$1,$AV$161:$AW$179,$AU164) -> Ofen-Typ | F84: 0 | L84: =HLOOKUP($V$1,$AV$161:$AW$179,$AU171) -> Temperatur | S84: °C | Y84: 0 | Z84: 0 | AB84: 0 | AC84: 0 | AO84: 0 | AP84: 0 | AU84: 4 | AV84: Zuführung | AW84: feeding
B85: =HLOOKUP($V$1,$AV$161:$AW$179,$AU165) -> Galvanik | F85: =Y85*1+Z85*2 -> 0 | G85: =HLOOKUP($V$1,$AL$3:$AN$5,$AK$4) -> Ja | H85: =HLOOKUP($V$1,$AL$3:$AN$5,$AK$5) -> Nein | L85: =HLOOKUP($V$1,$AV$161:$AW$179,$AU172) -> Galvanik-Bezeichnung | X85: Galvanik | Y85: 0 | Z85: 0 | AB85: 0 | AC85: 0 | AO85: 0 | AP85: 0 | AU85: 5 | AV85: Verwendetes Kalibrier-Öl | AW85: used calibration oil
B86: =HLOOKUP($V$1,$AV$161:$AW$179,$AU166) -> Lackierung | F86: =Y86*1+Z86*2 -> 0 | G86: =HLOOKUP($V$1,$AL$3:$AN$5,$AK$4) -> Ja | H86: =HLOOKUP($V$1,$AL$3:$AN$5,$AK$5) -> Nein | L86: =HLOOKUP($V$1,$AV$161:$AW$179,$AU173) -> Lack-Bezeichnung | X86: Lackierung | Y86: 0 | Z86: 0 | AB86: 0 | AC86: 0 | AO86: 0 | AP86: 0 | AU86: 6 | AV86: Wasch-Arbeitsgang | AW86: washing/cleaning process
Y87: 0 | Z87: 0 | AB87: 0 | AC87: 0 | AO87: 0 | AP87: 0 | AU87: 7
Y88: 0 | Z88: 0 | AB88: 0 | AC88: 0 | AO88: 0 | AP88: 0 | AU88: 8
Y89: 0 | Z89: 0 | AB89: 0 | AC89: 0 | AO89: 0 | AP89: 0 | AU89: 9
Y90: 0 | Z90: 0 | AB90: 0 | AC90: 0 | AO90: 0 | AP90: 0 | AU90: 10 | AV90: WZ-Ebenen (u/o) | AW90: tool plates (bottom/top)
B91: =HLOOKUP($V$1,$AV$181:$AW$199,$AU182) -> Imprägnieren | V91: =W91*1 -> 0 | W91: =OR(EXACT(B91,$B$13:$L$17)) -> FALSE | Y91: 0 | Z91: 0 | AB91: 0 | AC91: 0 | AO91: 0 | AP91: 0 | AU91: 11 | AV91: Hubzahl | AW91: revolutions per minute
Y92: 0 | Z92: 0 | AB92: 0 | AC92: 0 | AO92: 0 | AP92: 0 | AU92: 12 | AV92: zu kalibrierende Merkmale | AW92: dimensions to be sized
B93: =HLOOKUP($V$1,$AV$181:$AW$199,$AU183) -> Vakuumimprägnieren | F93: =Y93*1+Z93*2 -> 0 | G93: =HLOOKUP($V$1,$AL$3:$AN$37,$AK$4) -> Ja | H93: =HLOOKUP($V$1,$AL$3:$AN$5,$AK$5) -> Nein | L93: =HLOOKUP($V$1,$AV$181:$AW$199,$AU190) -> Imprägnier-Öl | Y93: 0 | Z93: 0 | AB93: 0 | AC93: 0 | AO93: 0 | AP93: 0 | AU93: 13
B94: =HLOOKUP($V$1,$AV$181:$AW$199,$AU184) -> Öl-Tauchen | F94: =Y94*1+Z94*2 -> 0 | G94: =HLOOKUP($V$1,$AL$3:$AN$37,$AK$4) -> Ja | H94: =HLOOKUP($V$1,$AL$3:$AN$5,$AK$5) -> Nein | L94: =HLOOKUP($V$1,$AV$181:$AW$199,$AU191) -> Temperatur | S94: °C | Y94: 0 | Z94: 0 | AB94: 0 | AC94: 0 | AO94: 0 | AP94: 0 | AU94: 14
B95: =HLOOKUP($V$1,$AV$181:$AW$199,$AU185) -> Kunststoffimprägnieren | F95: =Y95*1+Z95*2 -> 0 | G95: =HLOOKUP($V$1,$AL$3:$AN$37,$AK$4) -> Ja | H95: =HLOOKUP($V$1,$AL$3:$AN$5,$AK$5) -> Nein | L95: =HLOOKUP($V$1,$AV$181:$AW$199,$AU192) -> Produktname | Y95: 0 | Z95: 0 | AB95: 0 | AC95: 0 | AO95: 0 | AP95: 0 | AU95: 15
Y96: 0 | Z96: 0 | AB96: 0 | AC96: 0 | AO96: 0 | AP96: 0 | AU96: 16
Y97: 0 | Z97: 0 | AB97: 0 | AC97: 0 | AO97: 0 | AP97: 0 | AU97: 17
Y98: 0 | Z98: 0 | AB98: 0 | AC98: 0 | AO98: 0 | AP98: 0 | AU98: 18
Y99: 0 | Z99: 0 | AB99: 0 | AC99: 0 | AO99: 0 | AP99: 0 | AU99: 19
Y100: 0 | Z100: 0 | AB100: 0 | AC100: 0 | AO100: 0 | AP100: 0 | AV100: Wärmebehandlung
B101: =HLOOKUP($V$1,$AV$201:$AW$230,$AU202) -> Verpacken | V101: =W101*1 -> 0 | W101: =OR(EXACT(B101,$B$13:$L$17)) -> FALSE | Y101: 0 | Z101: 0 | AB101: 0 | AC101: 0 | AO101: 0 | AP101: 0 | AU101: 1 | AV101: deutsch | AW101: english
Y102: 0 | Z102: 0 | AB102: 0 | AC102: 0 | AF102: Verpackungsbehälter | AO102: 0 | AP102: 0 | AU102: 2 | AV102: weitere Wärmebehandlung | AW102: Add. heat treatment
B103: =HLOOKUP($V$1,$AV$201:$AW$219,$AU203) -> Verpackungsbehälter | F103: 0 | L103: =HLOOKUP($V$1,$AV$201:$AW$219,$AU210) -> Füllmenge je Behälter | Y103: 0 | Z103: 0 | AB103: 0 | AC103: 0 | AF103: =HLOOKUP($V$1,$AL$3:$AN$30,$AK$8) -> bitte auswählen | AO103: 0 | AP103: 0 | AU103: 3 | AV103: Einsatzhärten | AW103: case hardening
B104: =HLOOKUP($V$1,$AV$201:$AW$219,$AU204) -> Schüttware | F104: =Y104*1+Z104*2 -> 0 | G104: =HLOOKUP($V$1,$AL$3:$AN$37,$AK$4) -> Ja | H104: =HLOOKUP($V$1,$AL$3:$AN$5,$AK$5) -> Nein | L104: =HLOOKUP($V$1,$AV$201:$AW$219,$AU211) -> Mehrweg Verpackung | P104: =AB104*1+AC104*2 -> 0 | Q104: =HLOOKUP($V$1,$AL$3:$AN$37,$AK$4) -> Ja | R104: =HLOOKUP($V$1,$AL$3:$AN$5,$AK$5) -> Nein | Y104: 0 | Z104: 0 | AA104: Mehrweg Verpackung | AB104: 0 | AC104: 0 | AF104: =HLOOKUP($V$1,$AL$3:$AM$40,$AK38) -> KLT | AO104: 0 | AP104: 0 | AU104: 4 | AV104: Ofen-Typ | AW104: furnace type
B105: =HLOOKUP($V$1,$AV$201:$AW$219,$AU205) -> VCI/Korrosionsschutz | F105: =Y105*1+Z105*2 -> 0 | G105: =HLOOKUP($V$1,$AL$3:$AN$37,$AK$4) -> Ja | H105: =HLOOKUP($V$1,$AL$3:$AN$5,$AK$5) -> Nein | L105: =HLOOKUP($V$1,$AV$201:$AW$219,$AU212) -> ISPM/HT Verpackung | P105: =AB105*1+AC105*2 -> 0 | Q105: =HLOOKUP($V$1,$AL$3:$AN$37,$AK$4) -> Ja | R105: =HLOOKUP($V$1,$AL$3:$AN$5,$AK$5) -> Nein | X105: VCI/Korrosionsschutz | Y105: 0 | Z105: 0 | AA105: ISPM/HT Verpackung | AB105: 0 | AC105: 0 | AF105: =HLOOKUP($V$1,$AL$3:$AM$40,$AK39) -> Karton | AO105: 0 | AP105: 0 | AU105: 5 | AV105: Schüttware | AW105: bulk material / unsorted
B106: =HLOOKUP($V$1,$AV$201:$AW$219,$AU206) -> VDA Standard Etikett | F106: =Y106*1+Z106*2 -> 0 | G106: =HLOOKUP($V$1,$AL$3:$AN$37,$AK$4) -> Ja | H106: =HLOOKUP($V$1,$AL$3:$AN$5,$AK$5) -> Nein | Y106: 0 | Z106: 0 | AB106: 0 | AC106: 0 | AF106: =HLOOKUP($V$1,$AL$3:$AM$40,$AK40) -> Sonderbehälter | AO106: 0 | AP106: 0 | AU106: 6 | AV106: 2. Sintern mit DH | AW106: 2nd sintering incl. direct hardening
Y107: 0 | Z107: 0 | AB107: 0 | AC107: 0 | AO107: 0 | AP107: 0 | AU107: 7
AO108: 0 | AP108: 0 | AU108: 8
AO109: 0 | AP109: 0 | AU109: 9
B110: =HLOOKUP($V$1,$AL$3:$AN$10,$AK$7) -> Bitte Angaben zum Bearbeiter für mögliche Rückfragen ergänzen. Keine Unterschrift nötig, wenn dieses Dokument über die Online-FS Anwendung im Extranet an Brose gesendet wird | AO110: 0 | AP110: 0 | AU110: 10 | AV110: Induktivhärten | AW110: inductive hardening
AO111: 0 | AP111: 0 | AU111: 11 | AV111: Anlassen/Glühen | AW111: annealing
AO112: 0 | AP112: 0 | AU112: 12 | AV112: Ofen-Typ | AW112: furnace type
B113: =HLOOKUP($V$1,$AL$3:$AN$37,$AK$32) -> Funktion | F113: =HLOOKUP($V$1,$AL$3:$AN$37,$AK$33) -> Name | AO113: 0 | AP113: 0 | AU113: 13
AO114: 0 | AP114: 0 | AU114: 14
AO115: 0 | AP115: 0 | AU115: 15
B116: =HLOOKUP($V$1,$AL$3:$AN$37,$AK$34) -> Datum | F116: =HLOOKUP($V$1,$AL$3:$AN$37,$AK$35) -> Unterschrift | N116: =HLOOKUP($V$1,$AL$3:$AN$37,$AK$37) -> Kommentar | AO116: 0 | AP116: 0 | AU116: 16
B117: =HLOOKUP($V$1,$AL$3:$AN$31,$AK$30) -> Bereich für Auswertung durch Brose | AO117: 0 | AP117: 0 | AU117: 17
B118: =AO119 -> 0 | E118: =HLOOKUP($V$1,$AL$3:$AN$37,$AK$36) -> Bewertung | AF118: Bewertung | AO118: 0 | AP118: 0 | AU118: 18
U119: 1 | AF119: =HLOOKUP($V$1,$AL$3:$AN$30,$AK$8) -> bitte auswählen | AO119: 0 | AP119: 0 | AU119: 19
AF120: =HLOOKUP($V$1,$AL$3:$AM$31,$AK27) -> Akzeptiert | AO120: 0 | AP120: 0 | AV120: Entgraten
AF121: =HLOOKUP($V$1,$AL$3:$AM$31,$AK28) -> Bedingt akzeptiert | AO121: 0 | AP121: 0 | AU121: 1 | AV121: deutsch | AW121: english
B122: =HLOOKUP($V$1,$AL$3:$AN$37,$AK$32) -> Funktion | F122: =HLOOKUP($V$1,$AL$3:$AN$37,$AK$31) -> Name (Bearbeiter Brose) | AF122: =HLOOKUP($V$1,$AL$3:$AM$31,$AK29) -> Abgelehnt | AO122: 0 | AP122: 0 | AU122: 2 | AV122: Entgraten | AW122: Deburring
AO123: 0 | AP123: 0 | AU123: 3 | AV123: Verfahren | AW123: process
AO124: 0 | AP124: 0 | AU124: 4 | AV124: Gleitschleifkörper | AW124: vibratory grinding wheels
B125: =HLOOKUP($V$1,$AL$3:$AN$37,$AK$34) -> Datum | F125: =HLOOKUP($V$1,$AL$3:$AN$37,$AK$35) -> Unterschrift | N125: =HLOOKUP($V$1,$AL$3:$AN$37,$AK$37) -> Kommentar | AU125: 5 | AV125: Reinigungs-Arbeitsgang | AW125: washing/cleaning process
AU126: 6 | AV126: Trocknung | AW126: drying
AU127: 7 | AV127: zus. Korrosionsschutz | AW127: add. corrosion protection
AU128: 8 | AV128: Korrosionsschutzmittel | AW128: corrosion inhibitor
AU129: 9
AU130: 10 | AV130: Kühl-Schmiermittel | AW130: used cooling lubricant
AU131: 11 | AV131: KSM-Bezeichnung | AW131: washing medium name
AU132: 12 | AV132: Wasch-Medium | AW132: washing medium usage
AU133: 13 | AV133: Wasch-Medium Bezeichnung | AW133: washing medium name
AU134: 14 | AV134: Verlesen auf Schleifkörper | AW134: visual inspection 100%
AU135: 15
AU136: 16
AU137: 17
AU138: 18
AU139: 19
AV140: mech.Bearbeitung
AU141: 1 | AV141: deutsch | AW141: english
AU142: 2 | AV142: mech.Bearbeitung | AW142: Machining
AU143: 3 | AV143: Drehen | AW143: Turning
AU144: 4 | AV144: Fräsen | AW144: Milling
AU145: 5 | AV145: Bohren | AW145: Drilling
AU146: 6 | AV146: Honen | AW146: Honing
AU147: 7 | AV147: Schleifen | AW147: Grinding
AU148: 8 | AV148: sonstige | AW148: others
AU149: 9
AU150: 10 | AV150: Kühl-Schmiermittel | AW150: cooling lubricant
AU151: 11 | AV151: Kühl-Schmiermittel Bez. | AW151: used cooling lubricant
AU152: 12 | AV152: eigene ROH-Teil Zg. | AW152: RAW-part drawing
AU153: 13 | AV153: eigene BEA-Zg. | AW153: machining drawing
AU154: 14 | AV154: Korrosionsschutzmittel | AW154: corrosion inhibitor
AU155: 15
AU156: 16
AU157: 17
AU158: 18
AU159: 19
AV160: Oberflächenbehandlung
AU161: 1 | AV161: deutsch | AW161: english
AU162: 2 | AV162: Oberflächenbehandlung | AW162: Coating
AU163: 3 | AV163: Wasserdampfbehandlung | AW163: Steam-Treatment
AU164: 4 | AV164: Ofen-Typ | AW164: Furnace-type
AU165: 5 | AV165: Galvanik | AW165: Galvanic
AU166: 6 | AV166: Lackierung | AW166: Painting
AU167: 7
AU168: 8
AU169: 9
AU170: 10 | AV170: Prozessdauer | AW170: Process duration
AU171: 11 | AV171: Temperatur | AW171: Temperature
AU172: 12 | AV172: Galvanik-Bezeichnung | AW172: Galvanic designation
AU173: 13 | AV173: Lack-Bezeichnung | AW173: Painting designation
AU174: 14
AU175: 15
AU176: 16
AU177: 17
AU178: 18
AU179: 19
AV180: Imprägnieren
AU181: 1 | AV181: deutsch | AW181: english
AU182: 2 | AV182: Imprägnieren | AW182: Impregnation
AU183: 3 | AV183: Vakuumimprägnieren | AW183: Vacuum Impregnation
AU184: 4 | AV184: Öl-Tauchen | AW184: Oil Dipping
AU185: 5 | AV185: Kunststoffimprägnieren | AW185: plastic impregnation
AU186: 6
AU187: 7
AU188: 8
AU189: 9
AU190: 10 | AV190: Imprägnier-Öl | AW190: Impregnation oil
AU191: 11 | AV191: Temperatur | AW191: Process-Temperature
AU192: 12 | AV192: Produktname | AW192: Product-name
AU193: 13
AU194: 14
AU195: 15
AU196: 16
AU197: 17
AU198: 18
AU199: 19
AV200: Verpacken
... 19 more rows
